{"text_format":"1","workbook":"xlsx","n_sheets":2,"sheets":["24-Hour Activity Log Template","24-Hour Activity Log - BLANK"],"not_rendered":{"charts":0,"images":2,"macros":0,"external_links":0,"defined_names":2,"comments":0,"pivot_tables":0},"unopened":[],"bounds":{"document_bytes":16777216,"sheet_cells":100000,"rows_first":2000,"rows_last":500,"rows_between":2000,"halvings":0,"cell_chars":16384,"cell_head_chars":4096},"cells_cut":0,"cells_raw":0,"read":"whole","date_system":"1900"}

{"sheet":"24-Hour Activity Log Template","index":0,"n_rows":33,"n_cols":12,"rows_kept":33,"cut":false,"hidden":false,"merged":[[0,1,0,9],[2,10,3,10],[2,2,2,8],[2,1,3,1],[2,9,3,9],[2,11,3,11],[32,1,34,11]]}
[null,"24-HOUR ACTIVITY LOG TEMPLATE"]
[]
[null,"ACTIVITY DESCRIPTION","TIME IN MINUTES",null,null,null,null,null,null,"WEEKLY TOTALS \nIN MINS","WEEKLY TOTALS IN HRS","NOTES / TAKEAWAY FROM TIME STUDY"]
[null,null,"Su","M","T","W ","R","F","Sa"]
[null,"Class Time",null,null,null,null,480,null,null,{"$f":"SUM(C5:I5)","v":480},{"$f":"J5/60","v":8}]
[null,"Commuting",null,null,null,null,50,null,null,{"$f":"SUM(C6:I6)","v":50},{"$f":"J6/60","v":0.83333333333333337}]
[null,"Entertainment - Home",null,null,null,null,120,null,null,120,2]
[null,"Entertainment - Outside of Home",null,null,null,null,60,null,null,60,1]
[null,"Exercise",null,null,null,null,60,null,null,60,1]
[null,"Family / Friends",null,null,null,null,15,null,null,15,0.25]
[null,"Homework",null,null,null,null,90,null,null,90,1.5]
[null,"Internet / Social Media",null,null,null,null,40,null,null,{"$f":"SUM(C12:I12)","v":40},0.66666666666666663]
[null,"Meals / Eating",null,null,null,null,75,null,null,75,1.25]
[null,"Personal Care",null,null,null,null,30,null,null,30,0.5]
[null,"Recreation",null,null,null,null,null,null,null,0,0]
[null,"Social Engagements",null,null,null,null,null,null,null,0,0]
[null,"Sleep",null,null,null,null,420,null,null,420,7]
[null,"Travel",null,null,null,null,null,null,null,0,0]
[null,"Work",null,null,null,null,null,null,null,0,0]
[null,null,null,null,null,null,null,null,null,0,0]
[null,null,null,null,null,null,null,null,null,0,0]
[null,null,null,null,null,null,null,null,null,0,0]
[null,null,null,null,null,null,null,null,null,0,0]
[null,null,null,null,null,null,null,null,null,0,0]
[null,null,null,null,null,null,null,null,null,0,0]
[null,null,null,null,null,null,null,null,null,0,0]
[null,null,null,null,null,null,null,null,null,0,0]
[null,null,null,null,null,null,null,null,null,0,0]
[null,null,null,null,null,null,null,null,null,0,0]
[null,null,null,null,null,null,null,null,null,0,0]
[null,"GRAND TOTALS",{"$f":"SUM(C5:C30)","v":0},{"$f":"SUM(D5:D30)","v":0},0,0,1440,0,0,1440,{"$f":"J31/60","v":24},"DAILY TOTALS SHOULD EQUAL 24 HOURS  | 1440 MINUTES"]
[]
[null,"CLICK HERE TO CREATE 24-HOUR ACTIVITY LOG TEMPLATES IN SMARTSHEET"]

{"sheet":"24-Hour Activity Log - BLANK","index":1,"n_rows":31,"n_cols":12,"rows_kept":31,"cut":false,"hidden":false,"merged":[[2,11,3,11],[0,1,0,9],[2,1,3,1],[2,2,2,8],[2,9,3,9],[2,10,3,10]]}
[null,"24-HOUR ACTIVITY LOG TEMPLATE"]
[]
[null,"ACTIVITY DESCRIPTION","TIME IN MINUTES",null,null,null,null,null,null,"WEEKLY TOTALS \nIN MINS","WEEKLY TOTALS IN HRS","NOTES / TAKEAWAY FROM TIME STUDY"]
[null,null,"Su","M","T","W ","R","F","Sa"]
[null,null,null,null,null,null,null,null,null,{"$f":"SUM(C5:I5)","v":0},{"$f":"J5/60","v":0}]
[null,null,null,null,null,null,null,null,null,{"$f":"SUM(C6:I6)","v":0},{"$f":"J6/60","v":0}]
[null,null,null,null,null,null,null,null,null,0,0]
[null,null,null,null,null,null,null,null,null,0,0]
[null,null,null,null,null,null,null,null,null,0,0]
[null,null,null,null,null,null,null,null,null,0,0]
[null,null,null,null,null,null,null,null,null,0,0]
[null,null,null,null,null,null,null,null,null,0,0]
[null,null,null,null,null,null,null,null,null,0,0]
[null,null,null,null,null,null,null,null,null,0,0]
[null,null,null,null,null,null,null,null,null,0,0]
[null,null,null,null,null,null,null,null,null,0,0]
[null,null,null,null,null,null,null,null,null,0,0]
[null,null,null,null,null,null,null,null,null,0,0]
[null,null,null,null,null,null,null,null,null,0,0]
[null,null,null,null,null,null,null,null,null,0,0]
[null,null,null,null,null,null,null,null,null,0,0]
[null,null,null,null,null,null,null,null,null,0,0]
[null,null,null,null,null,null,null,null,null,0,0]
[null,null,null,null,null,null,null,null,null,0,0]
[null,null,null,null,null,null,null,null,null,0,0]
[null,null,null,null,null,null,null,null,null,0,0]
[null,null,null,null,null,null,null,null,null,0,0]
[null,null,null,null,null,null,null,null,null,0,0]
[null,null,null,null,null,null,null,null,null,0,0]
[null,null,null,null,null,null,null,null,null,0,0]
[null,"GRAND TOTALS",{"$f":"SUM(C5:C30)","v":0},{"$f":"SUM(D5:D30)","v":0},0,0,0,0,0,0,{"$f":"J31/60","v":0},"DAILY TOTALS SHOULD EQUAL 24 HOURS  | 1440 MINUTES"]